fUSD/lending_fUSD_20260502
["ID","MTS","AMOUNT","RATE_DAILY","PERIOD"]
[421466103,1777728646000,-398.0,0.00027137,2]
[421466143,1777728646000,-276.570834,0.0003136,120]
[421466189,1777728646000,-761.54605528,0.00031897,2]
[421466145,1777728646000,-666.72465,0.0003136,120]
[421466176,1777728646000,-227.8396677,0.00031837,2]
[421466181,1777728646000,-1335.0,0.00031854,2]
[421466178,1777728646000,-408.0,0.00031849,2]
[421466180,1777728646000,-1373.0,0.00031854,2]
[421466182,1777728646000,-1365.0,0.00031854,2]
[421466185,1777728646000,-1329.0,0.00031876,2]
[421466184,1777728646000,-1367.0,0.00031876,2]
[421466186,1777728646000,-1360.0,0.00031882,2]
[421466187,1777728646000,-1366.0,0.00031882,2]
[421466195,1777728646000,-761.54605528,0.00031897,2]
[421466205,1777728646000,-761.54605528,0.00031897,2]
[421466188,1777728646000,-210.26,0.00031889,120]
[421466179,1777728646000,-1367.0,0.00031854,2]
[421466190,1777728646000,-761.54605528,0.00031897,2]
[421466192,1777728646000,-761.54605528,0.00031897,2]
[421466194,1777728646000,-761.54605528,0.00031897,2]
[421466193,1777728646000,-761.54605528,0.00031897,2]
[421466196,1777728646000,-761.54605528,0.00031897,2]
[421466198,1777728646000,-49.97917156,0.00031897,2]
[421466199,1777728646000,-506.0,0.00031203,6]
[421466197,1777728646000,-761.54605528,0.00031897,2]
[421466200,1777728646000,-711.56688372,0.00031897,2]
[421466201,1777728646000,-190.71949686,0.00031897,2]
[421466204,1777728646000,-761.54605528,0.00031897,2]
[421466203,1777728646000,-761.54605528,0.00031897,2]
[421466202,1777728646000,-570.82655842,0.00031897,2]
[421466191,1777728646000,-761.54605528,0.00031897,2]
[421466183,1777728646000,-411.0,0.00031867,2]
[421466140,1777728646000,-4793.487244,0.0003098,2]
[421466174,1777728646000,-1368.0,0.00031792,2]
[421466177,1777728646000,-412.0,0.00031842,2]
[421466147,1777728646000,-260.099482,0.0003136,120]
[421466148,1777728646000,-182.03,0.00031448,10]
[421466152,1777728646000,-552.984925,0.00031458,120]
[421466151,1777728646000,-195.578534,0.00031458,14]
[421466153,1777728646000,-505.356468,0.00031458,120]
[421466156,1777728646000,-1075.13998066,0.00031541,2]
[421466154,1777728646000,-283.737865,0.00031458,120]
[421466157,1777728646000,-377.0455958,0.00031541,2]
[421466158,1777728646000,-444.58999998,0.00031541,2]
[421466159,1777728646000,-506.0,0.00029848,4]
[421466160,1777728646000,-23056.54643222,0.00031541,2]
[421466161,1777728646000,-171.460231,0.00031565,120]
[421466155,1777728646000,-175571.63889134,0.00031541,2]
[421466171,1777728646000,-1347.0,0.0003173,2]
[421466163,1777728646000,-412.0,0.000316,2]
[421466175,1777728646000,-300.0,0.000318,11]
[421466173,1777728646000,-150.0,0.00031754,7]
[421466172,1777728646000,-1354.0,0.0003173,2]
[421466167,1777728646000,-1365.0,0.00031631,2]
[421466168,1777728646000,-1373.0,0.00031641,2]
[421466169,1777728646000,-1330.0,0.00031641,2]
[421466165,1777728646000,-1368.0,0.00031603,2]
[421466164,1777728646000,-1220.0,0.00031602,2]
[421466162,1777728646000,-402.0,0.000316,2]
[421466170,1777728646000,-409.0,0.00031689,2]
[421466166,1777728646000,-1351.0,0.00031603,2]
[421466228,1777728647000,-761.54605528,0.00031897,2]
[421466230,1777728647000,-761.54605528,0.00031897,2]
[421466221,1777728647000,-761.54605528,0.00031897,2]
[421466224,1777728647000,-761.54605528,0.00031897,2]
[421466226,1777728647000,-761.54605528,0.00031897,2]
[421466229,1777728647000,-761.54605528,0.00031897,2]
[421466235,1777728647000,-758.30543376,0.00031897,2]
[421466239,1777728647000,-758.30543376,0.00031897,2]
[421466231,1777728647000,-761.54605528,0.00031897,2]
[421466232,1777728647000,-761.54605528,0.00031897,2]
[421466236,1777728647000,-758.30543376,0.00031897,2]
[421466238,1777728647000,-758.30543376,0.00031897,2]
[421466237,1777728647000,-758.30543376,0.00031897,2]
[421466249,1777728647000,-758.30543376,0.00031897,2]
[421466220,1777728647000,-761.54605528,0.00031897,2]
[421466233,1777728647000,-761.54605528,0.00031897,2]
[421466223,1777728647000,-761.54605528,0.00031897,2]
[421466209,1777728647000,-761.54605528,0.00031897,2]
[421466227,1777728647000,-761.54605528,0.00031897,2]
[421466207,1777728647000,-761.54605528,0.00031897,2]
[421466206,1777728647000,-761.54605528,0.00031897,2]
[421466210,1777728647000,-761.54605528,0.00031897,2]
[421466248,1777728647000,-758.30543376,0.00031897,2]
[421466208,1777728647000,-761.54605528,0.00031897,2]
[421466211,1777728647000,-761.54605528,0.00031897,2]
[421466213,1777728647000,-761.54605528,0.00031897,2]
[421466216,1777728647000,-761.54605528,0.00031897,2]
[421466214,1777728647000,-761.54605528,0.00031897,2]
[421466217,1777728647000,-761.54605528,0.00031897,2]
[421466215,1777728647000,-761.54605528,0.00031897,2]
[421466212,1777728647000,-761.54605528,0.00031897,2]
[421466218,1777728647000,-761.54605528,0.00031897,2]
[421466219,1777728647000,-761.54605528,0.00031897,2]
[421466222,1777728647000,-761.54605528,0.00031897,2]
[421466225,1777728647000,-761.54605528,0.00031897,2]
[421466240,1777728647000,-758.30543376,0.00031897,2]
[421466234,1777728647000,-761.54605528,0.00031897,2]
[421466245,1777728647000,-758.30543376,0.00031897,2]
[421466264,1777728647000,-758.30543376,0.00031897,2]
[421466262,1777728647000,-34.72750587,0.00031897,2]
[421466266,1777728647000,-758.30543376,0.00031897,2]
[421466263,1777728647000,-758.30543376,0.00031897,2]
[421466261,1777728647000,-723.57792789,0.00031897,2]
[421466268,1777728647000,-758.30543376,0.00031897,2]
[421466270,1777728647000,-733.3896838,0.00031897,2]
[421466271,1777728647000,-733.3896838,0.00031897,2]
[421466276,1777728647000,-733.3896838,0.00031897,2]
[421466274,1777728647000,-733.3896838,0.00031897,2]
[421466277,1777728647000,-733.3896838,0.00031897,2]
[421466279,1777728647000,-525.16371791,0.00031897,2]
[421466278,1777728647000,-131.88562281,0.00031897,2]
[421466275,1777728647000,-733.3896838,0.00031897,2]
[421466272,1777728647000,-733.3896838,0.00031897,2]
[421466265,1777728647000,-758.30543376,0.00031897,2]
[421466269,1777728647000,-733.3896838,0.00031897,2]
[421466267,1777728647000,-758.30543376,0.00031897,2]
[421466259,1777728647000,-758.30543376,0.00031897,2]
[421466244,1777728647000,-758.30543376,0.00031897,2]
[421466241,1777728647000,-758.30543376,0.00031897,2]
[421466242,1777728647000,-758.30543376,0.00031897,2]
[421466246,1777728647000,-758.30543376,0.00031897,2]
[421466247,1777728647000,-758.30543376,0.00031897,2]
[421466250,1777728647000,-758.30543376,0.00031897,2]
[421466260,1777728647000,-758.30543376,0.00031897,2]
[421466254,1777728647000,-758.30543376,0.00031897,2]
[421466273,1777728647000,-733.3896838,0.00031897,2]
[421466253,1777728647000,-758.30543376,0.00031897,2]
[421466252,1777728647000,-758.30543376,0.00031897,2]
[421466251,1777728647000,-758.30543376,0.00031897,2]
[421466255,1777728647000,-758.30543376,0.00031897,2]
[421466256,1777728647000,-758.30543376,0.00031897,2]
[421466257,1777728647000,-758.30543376,0.00031897,2]
[421466258,1777728647000,-758.30543376,0.00031897,2]
[421466243,1777728647000,-758.30543376,0.00031897,2]
[421466286,1777728774000,1504.56,0.00030137,120]
[421466287,1777728799000,200.0,0.00030137,120]
[421466289,1777729201000,999.99,0.00030136,120]
[421466290,1777729558000,-250.0,0.00013,2]
[421466292,1777729558000,-228.31652864,0.00016499,2]
[421466293,1777729558000,-52.7305649,0.00027137,2]
[421466291,1777729558000,-500.0,0.00014999,2]
[421466302,1777729639000,-150.0,0.00029564,7]
[421466304,1777729639000,-254.74850454,0.00029564,7]
[421466303,1777729639000,-150.0,0.00029564,7]
[421466301,1777729639000,-150.0,0.00029534,2]
[421466300,1777729639000,-220.82999301,0.00029464,2]
[421466299,1777729639000,-506.0,0.00028647,3]
[421466297,1777729639000,-151.0,0.00027137,2]
[421466298,1777729639000,-151.0,0.00027137,2]
[421466296,1777729639000,-401.0,0.00027137,2]
[421466295,1777729639000,-199.74149261,0.00027137,2]
[421466294,1777729639000,-453.2694351,0.00027137,2]
[421466310,1777729831000,-427.7070206,0.00027137,2]
[421466312,1777729831000,-412.0,0.00027137,2]
[421466314,1777729831000,-152.0,0.00027137,2]
[421466315,1777729831000,-398.0,0.00027137,2]
[421466313,1777729831000,-151.0,0.00027137,2]
[421466311,1777729831000,-78.2929794,0.00027137,2]
[421466324,1777729832000,-506.0,0.00028739,3]
[421466330,1777729832000,-151.0,0.00029564,2]
[421466333,1777729832000,-222.06899998,0.00029564,7]
[421466334,1777729832000,-150.0,0.00029564,2]
[421466331,1777729832000,-34.75303827,0.00029564,7]
[421466332,1777729832000,-150.00000001,0.00029564,7]
[421466329,1777729832000,-151.0,0.00029564,2]
[421466328,1777729832000,-150.0,0.00029564,2]
[421466325,1777729832000,-150.0,0.00029534,2]
[421466316,1777729832000,-402.0,0.00027137,2]
[421466327,1777729832000,-406.0,0.00029564,2]
[421466323,1777729832000,-397.0,0.00027137,2]
[421466321,1777729832000,-150.0,0.00027137,2]
[421466322,1777729832000,-150.0,0.00027137,2]
[421466319,1777729832000,-402.0,0.00027137,2]
[421466320,1777729832000,-397.0,0.00027137,2]
[421466318,1777729832000,-153.0,0.00027137,2]
[421466317,1777729832000,-150.0,0.00027137,2]
[421466326,1777729832000,-1004.0,0.00029563,2]
[421466336,1777729832000,-399.0,0.00029564,2]
[421466342,1777729832000,-260.97418999,0.00029798,2]
[421466338,1777729832000,-408.0,0.00029644,2]
[421466337,1777729832000,-407.0,0.00029564,2]
[421466364,1777729832000,-192.49546141,0.00031498,2]
[421466362,1777729832000,-10.40301299,0.00031448,2]
[421466360,1777729832000,-151.0,0.00031448,2]
[421466359,1777729832000,-181.33,0.00031021,120]
[421466361,1777729832000,-140.59698701,0.00031448,2]
[421466356,1777729832000,-1004.44627968,0.00030794,2]
[421466358,1777729832000,-150.0,0.00031011,2]
[421466357,1777729832000,-896.97301299,0.00030794,2]
[421466363,1777729832000,-407.0,0.00031448,2]
[421466355,1777729832000,-98.58070733,0.00030794,2]
[421466351,1777729832000,-149.55542037,0.00030723,120]
[421466349,1777729832000,-31.77457963,0.00030723,120]
[421466347,1777729832000,-408.32694597,0.00030341,5]
[421466344,1777729832000,-884.94274319,0.00030064,14]
[421466345,1777729832000,-97.67305403,0.00030341,5]
[421466339,1777729832000,-141.02581001,0.00029798,2]
[421466335,1777729832000,-400.0,0.00029564,2]
[421466353,1777729832000,-162.41759262,0.00030756,2]
[421466406,1777729838000,-179.95169988,0.00031812,2]
[421466409,1777729838000,-190.07291594,0.00031812,2]
[421466405,1777729838000,-500.0,0.00031812,2]
[421466400,1777729838000,-300.0,0.000318,11]
[421466402,1777729838000,-236.84,0.00031802,10]
[421466401,1777729838000,-284.2,0.00031802,10]
[421466408,1777729838000,-418.14838595,0.00031812,2]
[421466403,1777729838000,-197.36,0.00031803,10]
[421466407,1777729838000,-500.0,0.00031812,2]
[421466417,1777729838000,-500.0,0.00031812,2]
[421466410,1777729838000,-573.40223226,0.00031812,2]
[421466412,1777729838000,-500.0,0.00031812,2]
[421466404,1777729838000,-218.34766596,0.00031812,2]
[421466414,1777729838000,-500.0,0.00031812,2]
[421466415,1777729838000,-170.10106507,0.00031812,2]
[421466426,1777729838000,-500.0,0.00031812,2]
[421466418,1777729838000,-500.0,0.00031812,2]
[421466428,1777729838000,-500.0,0.00031812,2]
[421466411,1777729838000,-500.0,0.00031812,2]
[421466399,1777729838000,-233.98723583,0.00031799,2]
[421466397,1777729838000,-162.95027894,0.00031713,4]
[421466393,1777729838000,-3910.4138,0.00031713,2]
[421466376,1777729838000,-399.0,0.00027137,2]
[421466377,1777729838000,-150.0,0.00027137,2]
[421466378,1777729838000,-252.56293103,0.00027137,2]
[421466379,1777729838000,-213.50453859,0.00031498,2]
[421466380,1777729838000,-220.53608841,0.000316,2]
[421466382,1777729838000,-261.45995491,0.000316,2]
[421466387,1777729838000,-1523.37682919,0.000317,120]
[421466384,1777729838000,-188.0,0.00031642,10]
[421466385,1777729838000,-411.0,0.00031675,2]
[421466383,1777729838000,-261.45995491,0.000316,2]
[421466386,1777729838000,-160.0,0.0003169,5]
[421466381,1777729838000,-40.92386652,0.000316,2]
[421466388,1777729838000,-3309.21583068,0.000317,120]
[421466390,1777729838000,-2152.30413138,0.000317,120]
[421466391,1777729838000,-500.0,0.000317,120]
[421466392,1777729838000,-23635.268,0.00031713,2]
[421466389,1777729838000,-630.45732844,0.000317,120]
[421466394,1777729838000,-2500.0,0.00031713,2]
[421466396,1777729838000,-173.58103049,0.00031713,2]
[421466422,1777729838000,-500.0,0.00031812,2]
[421466395,1777729838000,-189.22400553,0.00031713,2]
[421466398,1777729838000,-5000.0,0.00031799,2]
[421466419,1777729838000,-500.0,0.00031812,2]
[421466413,1777729838000,-500.0,0.00031812,2]
[421466424,1777729838000,-500.0,0.00031812,2]
[421466458,1777729838000,-500.0,0.00031812,2]
[421466465,1777729838000,-500.0,0.00031812,2]
[421466464,1777729838000,-500.0,0.00031812,2]
[421466463,1777729838000,-500.0,0.00031812,2]
[421466462,1777729838000,-500.0,0.00031812,2]
[421466467,1777729838000,-500.0,0.00031812,2]
[421466468,1777729838000,-500.0,0.00031812,2]
[421466466,1777729838000,-500.0,0.00031812,2]
[421466470,1777729838000,-500.0,0.00031812,2]
[421466461,1777729838000,-500.0,0.00031812,2]
[421466421,1777729838000,-500.0,0.00031812,2]
[421466473,1777729838000,-500.0,0.00031812,2]
[421466472,1777729838000,-500.0,0.00031812,2]
[421466474,1777729838000,-500.0,0.00031812,2]
[421466475,1777729838000,-500.0,0.00031812,2]
[421466477,1777729838000,-500.0,0.00031812,2]
[421466476,1777729838000,-500.0,0.00031812,2]
[421466478,1777729838000,-254.84815926,0.00031812,2]
[421466480,1777729838000,-42.45071929,0.00031812,2]
[421466479,1777729838000,-245.15184074,0.00031812,2]
[421466471,1777729838000,-500.0,0.00031812,2]
[421466460,1777729838000,-500.0,0.00031812,2]
[421466469,1777729838000,-326.60159724,0.00031812,2]
[421466457,1777729838000,-500.0,0.00031812,2]
[421466459,1777729838000,-500.0,0.00031812,2]
[421466420,1777729838000,-495.4665729,0.00031812,2]
[421466435,1777729838000,-500.0,0.00031812,2]
[421466433,1777729838000,-500.0,0.00031812,2]
[421466431,1777729838000,-500.0,0.00031812,2]
[421466437,1777729838000,-500.0,0.00031812,2]
[421466439,1777729838000,-500.0,0.00031812,2]
[421466441,1777729838000,-500.0,0.00031812,2]
[421466450,1777729838000,-500.0,0.00031812,2]
[421466449,1777729838000,-500.0,0.00031812,2]
[421466430,1777729838000,-500.0,0.00031812,2]
[421466442,1777729838000,-500.0,0.00031812,2]
[421466444,1777729838000,-500.0,0.00031812,2]
[421466446,1777729838000,-500.0,0.00031812,2]
[421466447,1777729838000,-500.0,0.00031812,2]
[421466448,1777729838000,-500.0,0.00031812,2]
[421466452,1777729838000,-500.0,0.00031812,2]
[421466453,1777729838000,-500.0,0.00031812,2]
[421466455,1777729838000,-500.0,0.00031812,2]
[421466454,1777729838000,-500.0,0.00031812,2]
[421466456,1777729838000,-500.0,0.00031812,2]
[421466451,1777729838000,-500.0,0.00031812,2]
[421466491,1777729840000,-500.0,0.00031812,2]
[421466489,1777729840000,-500.0,0.00031812,2]
[421466486,1777729840000,-500.0,0.00031812,2]
[421466483,1777729840000,-457.54928071,0.00031812,2]
[421466485,1777729840000,-376.74104145,0.00031812,2]
[421466484,1777729840000,-123.25895855,0.00031812,2]
[421466488,1777729840000,-500.0,0.00031812,2]
[421466487,1777729840000,-500.0,0.00031812,2]
[421466490,1777729840000,-500.0,0.00031812,2]
[421466496,1777729840000,-211.91033858,0.00031812,2]
[421466495,1777729840000,-500.0,0.00031812,2]
[421466492,1777729840000,-499.99999999,0.00031812,2]
[421466498,1777729840000,-2038.3362421,0.00031813,7]
[421466494,1777729840000,-330.28911157,0.00031812,2]
[421466497,1777729840000,-55.88530977,0.00031813,7]
[421466499,1777729840000,-509.65562623,0.00031813,7]
[421466500,1777729840000,-28966.64413042,0.00031813,7]
[421466501,1777729840000,-301.92197159,0.00031813,7]
[421466493,1777729840000,-500.0,0.00031812,2]
[421466502,1777729840000,-522.9232407,0.00031813,7]
[421466525,1777729843000,-435.59338108,0.00031813,7]
[421466523,1777729843000,-1733.59562206,0.00031813,7]
[421466524,1777729843000,-9580.97694113,0.00031813,7]
[421466527,1777729843000,-2109.09633266,0.00031813,7]
[421466529,1777729843000,-5706.81939076,0.00031813,2]
[421466528,1777729843000,-36429.45688226,0.00031813,2]
[421466530,1777729843000,-378.72949618,0.00031813,2]
[421466526,1777729843000,-3776.1636923,0.00031813,7]
[421466537,1777729846000,-3556.04839639,0.00031813,2]
[421466558,1777730738000,-1173.58257189,0.00016438,5]
[421466620,1777731032000,-151.0,0.00027037,2]
[421466623,1777731032000,-152.0,0.00027037,2]
[421466622,1777731032000,-250.0,0.00027037,2]
[421466621,1777731032000,-151.0,0.00027037,2]
[421466624,1777731032000,-151.0,0.00027037,2]
[421466627,1777731032000,-150.0,0.00027037,2]
[421466626,1777731032000,-150.0,0.00027037,2]
[421466625,1777731032000,-151.0,0.00027037,2]
[421466628,1777731032000,-153.0,0.00027037,2]
[421466619,1777731032000,-297.0,0.00027037,2]
[421466629,1777731032000,-150.0,0.00027037,2]
[421466639,1777731032000,-506.0,0.00030341,5]
[421466641,1777731032000,-241.77,0.00030437,120]
[421466642,1777731032000,-157.69,0.00030469,120]
[421466640,1777731032000,-302.0,0.0003035,10]
[421466618,1777731032000,-237.2332,0.00027037,2]
[421466617,1777731032000,-151.0,0.00027036,2]
[421466612,1777731032000,-152.0,0.00027036,2]
[421466614,1777731032000,-151.0,0.00027036,2]
[421466600,1777731032000,-364.8352912,0.00016438,5]
[421466601,1777731032000,-445.7547088,0.00016438,5]
[421466603,1777731032000,-160.0,0.00026934,2]
[421466602,1777731032000,-250.0,0.00018082,2]
[421466604,1777731032000,-300.0,0.00027035,2]
[421466615,1777731032000,-151.0,0.00027036,2]
[421466606,1777731032000,-300.0,0.00027035,2]
[421466608,1777731032000,-151.0,0.00027036,2]
[421466607,1777731032000,-152.0,0.00027036,2]
[421466605,1777731032000,-1200.0,0.00027035,2]
[421466616,1777731032000,-151.0,0.00027036,2]
[421466610,1777731032000,-152.0,0.00027036,2]
[421466611,1777731032000,-151.0,0.00027036,2]
[421466609,1777731032000,-150.0,0.00027036,2]
[421466631,1777731032000,-270.0,0.00027037,2]
[421466613,1777731032000,-150.0,0.00027036,2]
[421466635,1777731032000,-506.0,0.00028739,3]
[421466599,1777731032000,-25.53742811,0.00016438,5]
[421466632,1777731032000,-506.0,0.00027137,2]
[421466659,1777731032000,-500.0,0.00031613,2]
[421466658,1777731032000,-4606.20839691,0.00031613,2]
[421466670,1777731032000,-1230.22,0.00031699,2]
[421466669,1777731032000,-1397.17965969,0.00031699,2]
[421466672,1777731032000,-335.31456548,0.00031699,2]
[421466671,1777731032000,-4438.00677323,0.00031699,2]
[421466663,1777731032000,-500.0,0.00031698,2]
[421466662,1777731032000,-500.0,0.00031698,2]
[421466660,1777731032000,-900.64760309,0.00031613,2]
[421466664,1777731032000,-500.0,0.00031698,2]
[421466673,1777731032000,-1299.03109547,0.00031699,2]
[421466667,1777731032000,-635.61589275,0.00031698,2]
[421466668,1777731032000,-166.16295254,0.00031698,2]
[421466665,1777731032000,-500.0,0.00031698,2]
[421466633,1777731032000,-5528.0,0.000272,5]
[421466657,1777731032000,-169.94897069,0.000316,2]
[421466655,1777731032000,-169.94897071,0.000316,2]
[421466666,1777731032000,-500.0,0.00031698,2]
[421466654,1777731032000,-170.30160495,0.00031599,2]
[421466656,1777731032000,-169.94897069,0.000316,2]
[421466630,1777731032000,-151.0,0.00027037,2]
[421466636,1777731032000,-404.0,0.00029054,2]
[421466634,1777731032000,-533.0,0.00028244,10]
[421466637,1777731032000,-165.14,0.000293,2]
[421466638,1777731032000,-150.0,0.00029534,2]
[421466643,1777731032000,-2000.0,0.00030844,2]
[421466645,1777731032000,-455.78,0.00031483,5]
[421466644,1777731032000,-150.0,0.00031011,2]
[421466647,1777731032000,-164.47,0.00031589,10]
[421466650,1777731032000,-259.37939,0.00031598,2]
[421466649,1777731032000,-1222.63711683,0.00031598,2]
[421466648,1777731032000,-822.37,0.00031589,10]
[421466651,1777731032000,-2057.93487788,0.00031598,2]
[421466652,1777731032000,-410.12346127,0.00031599,2]
[421466653,1777731032000,-2089.87653873,0.00031599,2]
[421466646,1777731032000,-2269.05944507,0.00031589,2]
[421466675,1777731038000,-996.93,0.00031699,2]
[421466677,1777731040000,-8539.3814926,0.00031699,2]
[421466679,1777731040000,-317.49109285,0.00031699,2]
[421466678,1777731040000,-300.72668511,0.00031699,2]
[421466680,1777731040000,-637.55172502,0.00031699,2]
[421466682,1777731040000,-943.78799,0.00031699,2]
[421466681,1777731040000,-7314.64809695,0.00031699,2]
[421466905,1777731043000,-282.36355332,0.00031699,2]
[421466904,1777731043000,-435.2257673,0.00031699,2]
[421466903,1777731043000,-15063.48806673,0.00031699,2]
[421466925,1777731046000,-151.0,0.00031712,2]
[421466933,1777731046000,-151.0,0.00031712,2]
[421466923,1777731046000,-151.0,0.00031712,2]
[421466934,1777731046000,-151.0,0.00031712,2]
[421466935,1777731046000,-151.0,0.00031712,2]
[421466921,1777731046000,-151.0,0.00031712,2]
[421466922,1777731046000,-151.0,0.00031712,2]
[421466920,1777731046000,-151.0,0.00031712,2]
[421466916,1777731046000,-20741.5666915,0.00031699,2]
[421466919,1777731046000,-302.0,0.000317,10]
[421466924,1777731046000,-151.0,0.00031712,2]
[421466918,1777731046000,-444.0,0.00031699,30]
[421466915,1777731046000,-5164.7201628,0.00031699,2]
[421466914,1777731046000,-250.0,0.00031699,2]
[421466913,1777731046000,-899.5,0.00031699,2]
[421466911,1777731046000,-480.55780114,0.00031699,2]
[421466912,1777731046000,-489.43218081,0.00031699,2]
[421466917,1777731046000,-1358.0,0.00031699,2]
[421466926,1777731046000,-151.0,0.00031712,2]
[421466948,1777731046000,-151.0,0.00031712,2]
[421466929,1777731046000,-151.0,0.00031712,2]
[421466927,1777731046000,-151.0,0.00031712,2]
[421466949,1777731046000,-151.0,0.00031712,2]
[421466944,1777731046000,-151.0,0.00031712,2]
[421466943,1777731046000,-151.0,0.00031712,2]
[421466946,1777731046000,-151.0,0.00031712,2]
[421466940,1777731046000,-151.0,0.00031712,2]
[421466941,1777731046000,-151.0,0.00031712,2]
[421466945,1777731046000,-151.0,0.00031712,2]
[421466942,1777731046000,-151.0,0.00031712,2]
[421466947,1777731046000,-151.0,0.00031712,2]
[421466936,1777731046000,-151.0,0.00031712,2]
[421466937,1777731046000,-151.0,0.00031712,2]
[421466938,1777731046000,-151.0,0.00031712,2]
[421466932,1777731046000,-151.0,0.00031712,2]
[421466931,1777731046000,-151.0,0.00031712,2]
[421466928,1777731046000,-151.0,0.00031712,2]
[421466939,1777731046000,-151.0,0.00031712,2]
[421466930,1777731046000,-151.0,0.00031712,2]
[421466972,1777731047000,-151.0,0.00031712,2]
[421466971,1777731047000,-151.0,0.00031712,2]
[421466980,1777731047000,-406.0,0.00031713,2]
[421466973,1777731047000,-151.0,0.00031712,2]
[421466979,1777731047000,-209.359813,0.00031712,2]
[421466975,1777731047000,-151.0,0.00031712,2]
[421466967,1777731047000,-151.0,0.00031712,2]
[421466970,1777731047000,-151.0,0.00031712,2]
[421466963,1777731047000,-151.0,0.00031712,2]
[421466962,1777731047000,-151.0,0.00031712,2]
[421466966,1777731047000,-151.0,0.00031712,2]
[421466968,1777731047000,-151.0,0.00031712,2]
[421466964,1777731047000,-151.0,0.00031712,2]
[421466960,1777731047000,-151.0,0.00031712,2]
[421466956,1777731047000,-151.0,0.00031712,2]
[421466952,1777731047000,-151.0,0.00031712,2]
[421466950,1777731047000,-151.0,0.00031712,2]
[421466958,1777731047000,-151.0,0.00031712,2]
[421466954,1777731047000,-151.0,0.00031712,2]
[421466976,1777731047000,-151.0,0.00031712,2]
[421466969,1777731047000,-151.0,0.00031712,2]
[421466974,1777731047000,-151.0,0.00031712,2]
[421466978,1777731047000,-151.0,0.00031712,2]
[421466998,1777731047000,-1781.31457863,0.00031897,2]
[421466997,1777731047000,-500.0,0.00031896,2]
[421466994,1777731047000,-151.0,0.00031813,2]
[421466995,1777731047000,-166.8805738,0.00031813,2]
[421466996,1777731047000,-200.0,0.00031813,2]
[421466988,1777731047000,-170.30160494,0.00031785,2]
[421466986,1777731047000,-363.17008042,0.00031758,2]
[421466989,1777731047000,-480.22492544,0.00031812,2]
[421466990,1777731047000,-150.0,0.00031813,2]
[421466987,1777731047000,-302.4522849,0.00031758,2]
[421466985,1777731047000,-431.73731678,0.00031758,2]
[421466981,1777731047000,-150.0,0.00031713,2]
[421466993,1777731047000,-905.77,0.00031813,2]
[421466984,1777731047000,-3152.2702853,0.00031758,2]
[421466992,1777731047000,-200.0,0.00031813,2]
[421466982,1777731047000,-404.0,0.00031713,2]
[421466983,1777731047000,-2498.5150407,0.00031758,2]
[421466977,1777731047000,-151.0,0.00031712,2]
[421466991,1777731047000,-200.0,0.00031813,2]
[421467001,1777731493000,500.0,0.00030013,120]
[421467000,1777731493000,500.0,0.00029438,120]
[421467002,1777731502000,2000.0,0.00030137,120]
[421467003,1777731505000,201.47,0.00030027,120]
[421467004,1777731955000,-250.0,0.00013,2]
[421467006,1777731955000,-284.0,0.00013,2]
[421467009,1777731955000,-160.05436247,0.00014299,2]
[421467007,1777731955000,-300.0,0.00013163,2]
[421467005,1777731955000,-150.72256056,0.00013,2]
[421467008,1777731955000,-250.0,0.00013325,2]
[421467011,1777732043000,-167.20249171,0.00014299,2]
[421467010,1777732043000,-220.82999302,0.000142,2]